bitfinex-derivatives/quotes_BTCF0:USTF0_20230901
["timestamp","ask_amount","ask_price","bid_price","bid_amount"]
[1693587882551,0.044,25781.0,25780.0,1.09836379]
[1693587883439,0.044,25781.0,25780.0,2.10079907]
[1693587883853,0.044,25781.0,25780.0,2.51226195]
[1693587887050,0.044,25781.0,25780.0,1.89136195]
[1693587887354,0.044,25781.0,25780.0,1.73677893]
[1693587887753,0.044,25781.0,25780.0,1.93000771]
[1693587888146,0.6209,25783.0,25781.0,0.05307971]
[1693587888346,0.6209,25783.0,25782.0,0.69311728]
[1693587888751,0.6209,25783.0,25782.0,0.65442341]
[1693587888949,0.6409,25783.0,25782.0,0.58711781]
[1693587889150,0.69558907,25783.0,25782.0,0.11612597]
[1693587889454,0.73158907,25783.0,25782.0,0.35885221]
[1693587889655,0.73158907,25783.0,25782.0,0.24272624]
[1693587889856,0.73158907,25783.0,25782.0,0.35888023]
[1693587890657,0.73158907,25783.0,25782.0,0.36288023]
[1693587890861,0.76758907,25783.0,25782.0,0.36288023]
[1693587891047,0.76758907,25783.0,25782.0,0.08144143]
[1693587891254,0.73358907,25783.0,25782.0,0.08244143]
[1693587891444,0.70358907,25783.0,25782.0,0.07944143]
[1693587891853,0.70358907,25783.0,25782.0,0.002]
[1693587892257,0.72958907,25783.0,25782.0,0.004]
[1693587892458,0.75558907,25783.0,25782.0,0.006]
[1693587892758,0.75558907,25783.0,25782.0,0.08344143]
[1693587893654,0.75558907,25783.0,25782.0,0.003]
[1693587893861,0.73158907,25783.0,25782.0,0.004]
[1693587894064,0.76758907,25783.0,25782.0,0.007]
[1693587894255,0.76758907,25783.0,25782.0,0.003]
[1693587894565,1.25468907,25782.0,25781.0,0.05307971]
[1693587894764,0.6,25781.0,25779.0,0.07744143]
[1693587894964,1.2,25779.0,25778.0,0.07744143]
[1693587895261,1.8409,25779.0,25778.0,0.35891713]
[1693587895454,1.89558907,25779.0,25778.0,0.35891713]
[1693587896162,1.89558907,25779.0,25778.0,0.24276314]
[1693587896863,1.87558907,25779.0,25778.0,0.24276314]
[1693587897059,1.89558907,25779.0,25778.0,0.24276314]
[1693587897364,1.89758907,25779.0,25778.0,0.012]
[1693587897559,1.91758907,25779.0,25778.0,0.25676314]
[1693587897768,1.93158907,25779.0,25778.0,0.24676314]
[1693587898355,1.91158907,25779.0,25778.0,0.24676314]
[1693587898564,1.93158907,25779.0,25778.0,0.24676314]
[1693587899069,1.91158907,25779.0,25778.0,0.24676314]
[1693587899258,1.93158907,25779.0,25778.0,0.24676314]
[1693587899464,0.71158907,25779.0,25778.0,0.24676314]
[1693587900953,0.71158907,25779.0,25778.0,0.13138636]
[1693587901960,0.6569,25779.0,25778.0,0.13138636]
[1693587902266,0.71158907,25779.0,25778.0,0.13138636]
[1693587902570,0.51018907,25779.0,25778.0,0.13138636]
[1693587903363,0.4555,25779.0,25778.0,0.18793474]
[1693587903554,0.4555,25779.0,25778.0,0.28537821]
[1693587904065,0.4555,25779.0,25778.0,0.32463949]
[1693587904264,0.036,25779.0,25778.0,0.74413949]
[1693587905165,0.036,25779.0,25778.0,0.66669602]
[1693587905562,0.036,25779.0,25778.0,1.90129047]
[1693587909275,0.036,25779.0,25778.0,1.78513648]
[1693587909770,0.036,25779.0,25778.0,1.90139924]
[1693587910071,0.036,25779.0,25778.0,1.78513648]
[1693587910773,0.036,25779.0,25778.0,1.93996316]
[1693587911167,0.036,25779.0,25778.0,1.78513648]
[1693587913169,0.036,25779.0,25778.0,1.90138078]
[1693587914275,0.19266717,25785.0,25783.0,0.3]
[1693587914276,0.15444195,25785.0,25783.0,0.3]
[1693587914487,0.15444195,25788.0,25784.0,0.64469602]
[1693587914776,1.22516717,25789.0,25787.0,0.4195]
[1693587914777,0.57394195,25789.0,25787.0,0.4195]
[1693587914971,0.57394195,25789.0,25788.0,0.16864764]
[1693587915169,0.57394195,25789.0,25788.0,0.12938636]
[1693587915571,0.4195,25789.0,25788.0,0.12938636]
[1693587915768,0.47418907,25789.0,25788.0,0.12938636]
[1693587915969,0.4195,25789.0,25788.0,0.12938636]
[1693587916172,0.47418907,25789.0,25788.0,0.12938636]
[1693587916774,0.49018907,25789.0,25788.0,0.13038636]
[1693587917082,0.4375,25789.0,25788.0,0.14538636]
[1693587917572,0.4375,25789.0,25788.0,0.58488636]
[1693587917573,0.018,25789.0,25788.0,0.58488636]
[1693587917772,0.018,25789.0,25788.0,0.68069602]
[1693587918373,0.003,25789.0,25788.0,0.68969602]
[1693587919181,0.004,25789.0,25788.0,0.70269602]
[1693587919476,0.005,25789.0,25788.0,0.71957602]
[1693587919871,0.005,25789.0,25788.0,0.71569602]
[1693587923067,0.57394195,25798.0,25796.0,0.00388]
[1693587923267,0.5622,25798.0,25797.0,0.42338]
[1693587923469,0.57394195,25800.0,25797.0,0.42338]
[1693587923674,0.57394195,25800.0,25799.0,0.4195]
[1693587923675,0.73664195,25800.0,25799.0,0.4195]
[1693587923874,0.79133102,25800.0,25799.0,0.4195]
[1693587924477,0.63688907,25800.0,25799.0,0.4195]
[1693587924668,1.21083102,25800.0,25797.0,0.4195]
[1693587924877,1.21083102,25800.0,25792.0,0.00388]
[1693587924878,1.6195,25798.0,25792.0,0.00388]
[1693587925068,0.4195,25793.0,25788.0,0.7705]
[1693587925277,0.4195,25789.0,25788.0,0.028]
[1693587925478,0.49418907,25789.0,25788.0,0.028]
[1693587925677,0.49418907,25789.0,25785.0,0.49680675]
[1693587925876,0.4195,25787.0,25786.0,0.13385513]
[1693587926275,0.4195,25787.0,25786.0,0.29921303]
[1693587926476,0.4195,25787.0,25786.0,0.37649401]
[1693587926783,0.4195,25787.0,25786.0,0.17309064]
[1693587927082,0.4195,25787.0,25786.0,0.20689064]
[1693587927277,0.003,25787.0,25786.0,0.66339064]
[1693587928181,0.006,25787.0,25786.0,0.70039064]
[1693587928987,0.18934195,25801.0,25797.0,0.3]
[1693587929186,0.0349,25801.0,25800.0,0.42338]
[1693587929689,0.0349,25801.0,25800.0,0.51918966]
[1693587930573,0.0719,25801.0,25800.0,0.55598966]
[1693587931282,0.0719,25801.0,25800.0,0.55210966]
[1693587931585,0.0719,25801.0,25800.0,0.55598966]
[1693587932392,0.0719,25801.0,25800.0,0.76028966]
[1693587933187,0.0719,25801.0,25800.0,0.09634838]
[1693587933778,0.12658907,25801.0,25800.0,0.0398]
[1693587934499,0.76738907,25801.0,25800.0,0.0398]
[1693587934784,1.38818907,25801.0,25792.0,0.6208]
[1693587934989,0.6208,25797.0,25792.0,0.6208]
[1693587935290,0.6208,25797.0,25793.0,0.00388]
[1693587935291,0.6408,25797.0,25793.0,0.00388]
[1693587935492,0.31878907,25796.0,25793.0,0.00388]
[1693587935683,0.2841,25796.0,25793.0,0.00388]
[1693587935883,0.05468907,25795.0,25793.0,0.00388]
[1693587936284,0.02,25795.0,25793.0,0.09968966]
[1693587936480,0.02,25795.0,25792.0,0.6238]
[1693587936684,0.6208,25794.0,25793.0,0.009]
[1693587936881,0.6408,25794.0,25793.0,0.009]
[1693587937083,0.69548907,25794.0,25789.0,0.07725249]
[1693587937392,0.6208,25792.0,25789.0,0.09725249]
[1693587937692,0.6208,25792.0,25790.0,0.05654838]
[1693587937993,0.67548907,25792.0,25789.0,0.07725249]
[1693587938183,0.67548907,25792.0,25789.0,0.13651377]
[1693587938492,0.05468907,25791.0,25789.0,0.07725249]
[1693587938885,0.6208,25792.0,25789.0,0.11651377]
[1693587939187,0.6208,25792.0,25789.0,0.15451377]
[1693587939188,0.6438,25792.0,25789.0,0.15451377]
[1693587939391,0.6438,25792.0,25789.0,0.11525249]
[1693587939585,0.6208,25790.0,25789.0,0.038]
[1693587939792,0.69548907,25790.0,25789.0,0.001]
[1693587940383,0.69548907,25790.0,25789.0,0.002]
[1693587940585,0.69548907,25790.0,25789.0,0.001]
[1693587940785,0.69548907,25790.0,25788.0,0.07725249]
[1693587940987,0.021,25790.0,25789.0,0.009]
[1693587941191,0.6418,25790.0,25789.0,0.009]
[1693587941697,0.6418,25790.0,25789.0,0.01]
[1693587941698,0.69648907,25790.0,25789.0,0.01]
[1693587941992,0.69648907,25790.0,25787.0,0.07725249]
[1693587942193,0.6208,25788.0,25787.0,0.07725249]
[1693587942581,0.6208,25788.0,25787.0,0.07710842]
[1693587942784,0.69548907,25788.0,25787.0,0.07710842]
[1693587943184,0.69548907,25788.0,25787.0,0.11566263]
[1693587943382,0.69548907,25788.0,25786.0,0.11566263]
[1693587943585,0.6438,25788.0,25787.0,0.14866263]
[1693587943988,0.69848907,25788.0,25787.0,0.14866263]
[1693587945295,0.69848907,25788.0,25787.0,0.17166263]
[1693587945598,1.89848907,25788.0,25787.0,0.13866263]
[1693587945788,1.89848907,25788.0,25787.0,0.10018202]
[1693587945988,1.89848907,25788.0,25787.0,0.033]
[1693587946295,0.05468907,25787.0,25786.0,0.11566263]
[1693587946491,0.69548907,25787.0,25786.0,0.11566263]
[1693587946996,0.69548907,25787.0,25785.0,0.11566263]
[1693587947200,0.67548907,25786.0,25785.0,0.11566263]
[1693587947404,0.69548907,25786.0,25785.0,0.11566263]
[1693587948493,0.67548907,25786.0,25784.0,0.15421684]
[1693587948687,0.67548907,25785.0,25782.0,0.11581413]
[1693587948999,0.67548907,25785.0,25783.0,0.24268422]
[1693587949000,0.6208,25785.0,25783.0,0.24268422]
[1693587949294,0.05468907,25784.0,25783.0,0.24268422]
[1693587950706,0.05468907,25784.0,25783.0,0.24868422]
[1693587951893,0.05668907,25784.0,25783.0,0.26268422]
[1693587952490,0.05868907,25784.0,25783.0,0.28868422]
[1693587953601,0.07868907,25784.0,25783.0,0.28868422]
[1693587953995,0.69948907,25784.0,25783.0,0.046]
[1693587954296,1.29948907,25784.0,25783.0,0.046]
[1693587959508,1.26124075,25784.0,25783.0,0.046]
[1693587960503,0.8871,25785.0,25783.0,0.08526128]
[1693587960692,0.8871,25785.0,25783.0,0.046]
[1693587960896,0.05468907,25784.0,25783.0,0.046]
[1693587961097,0.05468907,25784.0,25783.0,0.06558387]
[1693587961410,0.8871,25785.0,25783.0,0.14213225]
[1693587961602,0.8871,25785.0,25783.0,0.188398]
[1693587961798,0.8891,25785.0,25783.0,0.155398]
[1693587961995,0.8871,25785.0,25783.0,0.02558387]
[1693587962201,0.05768907,25784.0,25783.0,0.05258387]
[1693587962806,0.05468907,25784.0,25783.0,0.03958387]
[1693587963002,0.2683,25785.0,25783.0,0.75619353]
[1693587963212,0.2683,25785.0,25783.0,0.796198]
[1693587963502,0.2683,25785.0,25784.0,0.09580966]
[1693587963707,0.2933,25785.0,25784.0,0.09580966]
[1693587963907,0.2933,25785.0,25784.0,0.75619353]
[1693587964297,0.2913,25785.0,25784.0,0.75619353]
[1693587964502,0.2913,25785.0,25784.0,0.13539353]
[1693587964713,0.34598907,25785.0,25784.0,0.01958387]
[1693587964908,0.35898907,25785.0,25784.0,0.02158387]
[1693587965100,0.2793,25785.0,25784.0,0.06084515]
[1693587965301,0.2983,25785.0,25784.0,0.30351462]
[1693587965502,0.2983,25785.0,25784.0,0.09284515]
[1693587965503,0.021,25785.0,25784.0,0.09284515]
[1693587965707,0.021,25785.0,25784.0,0.14939353]
[1693587966011,0.027,25785.0,25784.0,0.15139353]
[1693587966407,0.08168907,25785.0,25784.0,0.09213225]
[1693587966603,0.05668907,25785.0,25784.0,0.27625512]
[1693587966804,0.07568907,25785.0,25784.0,0.27725512]
[1693587967015,0.6418,25785.0,25784.0,0.3338035]
[1693587967203,0.6418,25785.0,25784.0,0.37306478]
[1693587967405,0.4404,25785.0,25784.0,0.3338035]
[1693587967711,0.51908907,25785.0,25784.0,0.26625512]
[1693587968301,0.50608907,25785.0,25784.0,0.24567125]
[1693587969016,1.72608907,25785.0,25784.0,0.003]
[1693587969816,1.73208907,25785.0,25784.0,0.004]
[1693587970903,1.74508907,25785.0,25784.0,0.005]
[1693587971303,1.74508907,25785.0,25784.0,0.004]
[1693587971304,2.03908907,25785.0,25784.0,0.004]
[1693587971621,2.2194,25781.0,25777.0,0.00012]
[1693587971805,0.4194,25778.0,25777.0,0.01970387]
[1693587972014,0.4194,25778.0,25777.0,0.26243496]
[1693587972318,0.05468907,25779.0,25777.0,0.26243496]
[1693587972617,0.6214,25780.0,25778.0,0.24273109]
[1693587972811,0.05468907,25779.0,25778.0,0.24273109]
[1693587973213,0.05468907,25779.0,25778.0,0.26231496]
[1693587973421,0.05468907,25779.0,25778.0,0.24273109]
[1693587974314,0.05468907,25779.0,25778.0,0.26231496]
[1693587974525,0.05468907,25779.0,25778.0,0.24273109]
[1693587974818,0.33568907,25779.0,25778.0,0.30873109]
[1693587975421,0.33768907,25779.0,25778.0,0.32831496]
[1693587975618,0.33768907,25779.0,25778.0,0.30873109]
[1693587976116,0.283,25779.0,25778.0,0.30873109]
[1693587976322,0.283,25779.0,25778.0,1.42714959]
[1693587976516,0.283,25779.0,25778.0,1.44673346]
[1693587976818,0.283,25779.0,25778.0,1.54254312]
[1693587977024,0.283,25779.0,25778.0,1.52295925]
[1693587977428,0.006,25779.0,25778.0,2.16435925]
[1693587977621,0.006,25779.0,25778.0,2.18394312]
[1693587978227,0.6214,25783.0,25781.0,0.01094691]
[1693587978412,0.6214,25783.0,25782.0,0.33854075]
[1693587978614,0.6214,25783.0,25782.0,0.49402721]
[1693587978809,0.6214,25783.0,25782.0,0.39821755]
[1693587979616,0.6224,25783.0,25782.0,0.39821755]
[1693587980322,0.6224,25783.0,25782.0,0.78951378]
[1693587980626,0.6284,25783.0,25782.0,0.78951378]
[1693587980828,0.6284,25783.0,25782.0,0.76951378]
[1693587981119,0.6284,25783.0,25782.0,0.7312525]
[1693587981330,0.68308907,25783.0,25782.0,0.67470412]
[1693587981625,0.6284,25783.0,25782.0,0.52016734]
[1693587981827,0.007,25783.0,25782.0,1.43014805]
[1693587982127,0.007,25783.0,25782.0,2.37560405]
[1693587984720,0.007,25783.0,25782.0,2.60692931]
[1693587985528,0.001,25783.0,25782.0,2.60692931]
[1693587985725,0.002,25783.0,25782.0,2.62592931]
[1693587985927,0.004,25783.0,25782.0,2.65192931]
[1693587986125,0.004,25783.0,25782.0,2.65658979]
[1693587986320,0.004,25783.0,25782.0,2.42526453]
[1693587987430,0.004,25783.0,25782.0,2.43226453]
[1693587988131,0.005,25783.0,25782.0,2.45026453]
[1693587988730,0.005,25783.0,25782.0,2.43026453]
[1693587988926,0.005,25783.0,25782.0,1.80886453]
[1693587989237,0.005,25783.0,25782.0,1.84834757]
[1693587989429,0.6464,25783.0,25782.0,0.43456331]
[1693587989733,0.70108907,25783.0,25782.0,0.31839157]
[1693587990525,0.70108907,25783.0,25782.0,0.07566048]
[1693587991225,0.70008907,25783.0,25782.0,0.05666048]
[1693587991425,0.6454,25783.0,25782.0,0.05666048]
[1693587991735,0.001,25783.0,25782.0,0.01366048]
[1693587992031,0.001,25783.0,25782.0,0.37176503]
[1693587992434,0.001,25783.0,25782.0,2.11141245]
[1693587992729,0.001,25783.0,25782.0,2.24758594]
[1693587992937,0.006,25783.0,25782.0,2.24058594]
[1693587993331,0.006,25783.0,25782.0,2.12441245]
[1693587993534,0.006,25783.0,25782.0,2.10441245]
[1693587994228,0.006,25783.0,25782.0,2.12441245]
[1693587994429,0.006,25783.0,25782.0,2.24058594]
[1693587994629,0.006,25783.0,25782.0,2.12441245]
[1693587998837,0.006,25783.0,25782.0,1.38720279]
[1693587999433,0.006,25783.0,25782.0,1.4068802]
[1693587999633,0.006,25783.0,25782.0,1.48301245]
[1693588000338,0.6474,25783.0,25782.0,0.2493715]
[1693588000534,0.80130197,25783.0,25782.0,0.2493715]
[1693588000734,0.85599104,25783.0,25782.0,0.2493715]
[1693588001436,0.70208907,25783.0,25782.0,0.2493715]
[1693588002145,0.70208907,25783.0,25782.0,0.0809715]
[1693588002336,0.65468907,25782.0,25781.0,0.01094691]
[1693588002542,1.29608907,25782.0,25781.0,0.01094691]
[1693588002844,1.29608907,25782.0,25781.0,0.25366111]
[1693588003439,1.29608907,25782.0,25781.0,0.2427142]
[1693588004551,0.622,25782.0,25781.0,0.2647142]
[1693588004745,0.622,25782.0,25781.0,0.26937164]
[1693588005136,0.67668907,25782.0,25781.0,0.26937164]
[1693588005540,0.022,25782.0,25781.0,0.26937164]
[1693588005743,0.002,25782.0,25781.0,0.28895551]
[1693588005939,0.002,25782.0,25781.0,1.40721261]
[1693588006148,0.002,25782.0,25781.0,1.50302227]
[1693588006642,0.002,25782.0,25781.0,0.34550389]
[1693588006852,0.002,25782.0,25781.0,0.28895551]
[1693588007059,0.6234,25782.0,25781.0,0.28895551]
[1693588007237,0.67808907,25782.0,25781.0,0.28895551]
[1693588008243,0.69995471,25782.0,25781.0,0.28895551]
[1693588008446,0.71995471,25782.0,25781.0,0.26937164]
[1693588008749,0.87385668,25782.0,25781.0,0.26937164]
[1693588009939,1.31995471,25782.0,25781.0,0.26937164]
[1693588010139,1.31995471,25782.0,25781.0,0.02665744]
[1693588012747,1.47439395,25782.0,25781.0,0.02665744]
[1693588016353,1.47439395,25782.0,25781.0,0.26938084]
[1693588016545,1.31995471,25782.0,25781.0,0.26938084]
[1693588017449,1.29995471,25782.0,25781.0,0.26938084]
[1693588017953,1.31995471,25782.0,25781.0,0.26937551]
[1693588018152,1.31995471,25782.0,25781.0,0.32592389]
[1693588018750,1.31995471,25782.0,25781.0,0.26937551]
[1693588020744,1.31995471,25782.0,25781.0,0.02665744]
[1693588023848,1.47439395,25782.0,25781.0,0.02665744]
[1693588027061,1.31995471,25782.0,25781.0,0.02665744]
[1693588027255,1.11805471,25782.0,25781.0,0.02665744]
[1693588028548,1.09805471,25782.0,25781.0,0.02665744]
[1693588030852,2.29805471,25782.0,25781.0,0.02665744]
[1693588031457,2.29805471,25782.0,25781.0,0.02852131]
[1693588033560,2.29805471,25782.0,25781.0,0.27124509]
[1693588037159,2.29805471,25782.0,25781.0,0.29082896]
[1693588037363,0.7195,25781.0,25780.0,0.00058179]
[1693588037555,1.19368907,25781.0,25780.0,0.003677]
[1693588037760,1.46088907,25781.0,25780.0,0.003677]
[1693588038567,1.46088907,25781.0,25780.0,0.025677]
[1693588038867,1.46388907,25781.0,25780.0,0.025677]
[1693588039562,0.7235,25781.0,25780.0,0.043677]
[1693588039764,0.7235,25781.0,25780.0,0.063677]
[1693588040165,0.77818907,25781.0,25780.0,0.063677]
[1693588040359,0.7235,25781.0,25780.0,0.063677]
[1693588040757,0.7235,25781.0,25780.0,0.10293828]
[1693588041053,0.4235,25781.0,25780.0,0.15948666]
[1693588041363,0.4235,25781.0,25780.0,0.063677]
[1693588041860,0.44536564,25781.0,25780.0,0.063677]
[1693588042665,0.02586564,25781.0,25780.0,0.483177]
[1693588043060,0.02586564,25781.0,25780.0,0.57898666]
[1693588043255,0.44536564,25781.0,25780.0,0.483177]
[1693588043660,0.44536564,25781.0,25780.0,0.57898666]
[1693588044066,0.44536564,25781.0,25780.0,0.12022538]
[1693588044363,0.44536564,25781.0,25780.0,0.15948666]
[1693588044664,0.44536564,25781.0,25780.0,0.063677]
[1693588045065,0.91955471,25781.0,25780.0,0.043677]
[1693588045265,1.07399395,25781.0,25780.0,0.043677]
[1693588045460,0.91955471,25781.0,25780.0,0.043677]
[1693588046251,0.91955471,25781.0,25780.0,0.15985049]
[1693588047256,0.70195471,25781.0,25780.0,0.15985049]
[1693588047455,0.70195471,25781.0,25780.0,0.043677]
[1693588049965,0.64726564,25781.0,25780.0,0.043677]
[1693588050359,0.70195471,25781.0,25780.0,0.043677]
[1693588050559,0.64726564,25781.0,25780.0,0.043677]
[1693588051058,0.70195471,25781.0,25780.0,0.043677]
[1693588052666,0.70195471,25781.0,25780.0,0.15985049]
[1693588053054,0.70195471,25781.0,25780.0,0.043677]
[1693588053765,0.70195471,25781.0,25780.0,0.17985049]
[1693588054158,0.70195471,25781.0,25780.0,0.063677]
[1693588054365,0.70195471,25781.0,25780.0,0.043677]
[1693588055264,0.64726564,25781.0,25780.0,0.043677]
[1693588055463,0.64726564,25781.0,25780.0,0.15985049]
[1693588055969,0.70195471,25781.0,25780.0,0.15985049]
[1693588056158,0.70195471,25781.0,25780.0,0.043677]
[1693588056355,0.85657015,25781.0,25780.0,0.043677]
[1693588058469,0.80188108,25781.0,25780.0,0.043677]
[1693588058970,0.85657015,25781.0,25780.0,0.043677]
[1693588060772,0.91433218,25781.0,25780.0,0.043677]
[1693588061276,0.91544125,25781.0,25780.0,0.043677]
[1693588062163,1.2,25778.0,25777.0,0.00012]
[1693588062362,1.87608907,25778.0,25777.0,0.00012]
[1693588062866,2.06957533,25778.0,25777.0,0.00012]
[1693588063068,2.06951982,25778.0,25777.0,0.00012]
[1693588063274,2.06951982,25778.0,25777.0,0.03712]
[1693588063475,2.07251982,25778.0,25777.0,0.03712]
[1693588064071,2.07651982,25778.0,25777.0,0.04212]
[1693588066074,1.88308907,25778.0,25777.0,0.04212]
[1693588068876,2.05962319,25778.0,25777.0,0.04212]
[1693588071482,2.20495471,25778.0,25777.0,0.04212]
[1693588071773,2.20495471,25778.0,25773.0,0.11617349]
[1693588071774,1.2,25775.0,25773.0,0.07756554]
[1693588071970,0.67608907,25774.0,25772.0,0.07756554]
[1693588072168,1.2,25770.0,25768.0,0.1550722]
[1693588072371,1.2,25761.0,25760.0,0.23132526]
[1693588072577,0.4197,25761.0,25760.0,0.41217046]
[1693588072774,0.4197,25761.0,25759.0,0.09580966]
[1693588072775,1.2,25760.0,25759.0,0.09580966]
[1693588073078,1.2,25760.0,25757.0,0.11634622]
[1693588073079,1.6197,25760.0,25757.0,0.11634622]
[1693588073270,1.9197,25764.0,25758.0,0.05654838]
[1693588073471,0.4197,25759.0,25758.0,0.02]
[1693588073895,0.4197,25759.0,25758.0,0.07654838]
[1693588074085,0.47438907,25759.0,25758.0,0.07654838]
[1693588074381,0.4197,25756.0,25754.0,0.15512048]
[1693588074584,0.4197,25756.0,25753.0,0.15512048]
[1693588074585,0.47438907,25755.0,25753.0,0.15512048]
[1693588074774,0.4197,25756.0,25753.0,0.15512048]
[1693588074775,0.4197,25754.0,25753.0,0.17512048]
[1693588075080,0.47438907,25754.0,25753.0,0.02]
[1693588075780,0.49625471,25754.0,25751.0,0.15512048]
[1693588075977,0.49625471,25754.0,25751.0,0.02]
[1693588075978,0.4197,25752.0,25751.0,0.02]
[1693588076174,0.4197,25752.0,25751.0,0.17447523]
[1693588076370,0.47438907,25752.0,25751.0,0.15447523]
[1693588076675,0.4197,25752.0,25751.0,0.23102361]
[1693588076878,0.4197,25752.0,25751.0,0.4881239]
[1693588077082,0.32253456,25752.0,25751.0,0.4881239]
[1693588077282,0.626,25752.0,25751.0,0.4881239]
[1693588077678,0.626,25752.0,25751.0,0.52738518]
[1693588077980,0.626,25752.0,25751.0,0.00388]
[1693588078379,0.629,25752.0,25751.0,0.02788]
[1693588078580,0.629,25752.0,25751.0,0.17847523]
[1693588078981,0.629,25752.0,25751.0,0.04788]
[1693588079480,0.629,25752.0,25751.0,0.14368966]
[1693588079985,0.629,25752.0,25751.0,0.13980966]
[1693588080187,0.629,25752.0,25751.0,0.044]
[1693588080382,0.629,25752.0,25751.0,0.10054838]
[1693588080584,0.629,25752.0,25751.0,0.13980966]
[1693588080783,0.63,25752.0,25751.0,0.13780966]
[1693588081288,0.63,25752.0,25751.0,0.09854838]
[1693588081985,0.70030646,25752.0,25751.0,0.042]
[1693588082190,0.64561739,25752.0,25751.0,0.042]
[1693588082389,0.64561739,25752.0,25751.0,0.022]
[1693588082686,0.65186564,25752.0,25751.0,0.08242838]
[1693588082884,0.65186564,25752.0,25751.0,0.07854838]
[1693588083385,0.65186564,25752.0,25751.0,0.11780966]
[1693588083585,0.65186564,25752.0,25751.0,0.07854838]
[1693588083784,0.65186564,25752.0,25751.0,0.11780966]
[1693588084388,0.65186564,25752.0,25751.0,0.07854838]
[1693588084889,0.65186564,25752.0,25751.0,0.11780966]
[1693588085588,0.65186564,25752.0,25751.0,0.07854838]
[1693588086284,0.65186564,25752.0,25751.0,0.11780966]
[1693588086485,0.02986564,25752.0,25751.0,0.76368966]
[1693588090099,0.02986564,25752.0,25751.0,0.14168966]
[1693588090393,0.02986564,25752.0,25751.0,0.02588]
[1693588090607,0.67186564,25752.0,25751.0,0.02588]
[1693588090896,0.72655471,25752.0,25751.0,0.022]
[1693588091398,0.7421721,25752.0,25751.0,0.022]
[1693588091790,0.67186564,25752.0,25751.0,0.022]
[1693588092191,0.57470126,25752.0,25751.0,0.022]
[1693588092394,0.57470126,25752.0,25751.0,0.11780966]
[1693588092598,0.57470126,25752.0,25751.0,0.07854838]
[1693588092902,0.57470126,25752.0,25751.0,0.11780966]
[1693588093292,0.59031865,25752.0,25751.0,0.07854838]
[1693588093592,0.57470126,25752.0,25751.0,0.022]
[1693588094000,0.57470126,25752.0,25751.0,0.11780966]
[1693588094201,0.57470126,25752.0,25751.0,0.07854838]
[1693588094709,0.55470126,25752.0,25751.0,0.11780966]
[1693588094911,0.60939033,25752.0,25751.0,0.022]
[1693588095208,0.62939033,25752.0,25751.0,0.022]
[1693588095401,0.64500772,25752.0,25751.0,0.022]
[1693588095608,0.66500772,25752.0,25751.0,0.022]
[1693588096206,1.86500772,25752.0,25749.0,0.00058248]
[1693588096415,0.62588,25750.0,25749.0,0.00058248]
[1693588096710,0.58813407,25750.0,25749.0,0.00058248]
[1693588096915,0.65844053,25750.0,25749.0,0.00058248]
[1693588097505,0.64644053,25750.0,25749.0,0.00858248]
[1693588097807,0.66256053,25750.0,25749.0,0.00858248]
[1693588101411,0.66256053,25750.0,25742.0,0.44668]
[1693588101412,0.622,25746.0,25742.0,0.44668]
[1693588101608,0.622,25743.0,25742.0,0.30388]
[1693588101809,0.46650542,25743.0,25742.0,0.35654838]
[1693588102203,0.54119449,25743.0,25742.0,0.3]
[1693588102408,0.42,25743.0,25742.0,0.3]
[1693588102604,0.42,25743.0,25738.0,0.7588434]
[1693588102605,0.33843012,25743.0,25739.0,0.15447523]
[1693588102819,0.42,25740.0,25738.0,0.5628]
[1693588103116,0.43561739,25739.0,25735.0,0.15447523]
[1693588103329,0.42,25737.0,25727.0,1.20792526]
[1693588103621,0.42,25737.0,25724.0,0.27387947]
[1693588103622,1.86,25737.0,25730.0,0.15381714]
[1693588103814,0.2855,25736.0,25734.0,0.19220566]
[1693588104013,1.2,25738.0,25732.0,0.3]
[1693588104222,0.42,25733.0,25732.0,0.32]
[1693588104520,1.207,25743.0,25736.0,0.42]
[1693588104521,0.004,25739.0,25736.0,0.42]
[1693588104817,0.004,25739.0,25738.0,0.72]
[1693588105010,0.004,25739.0,25738.0,0.81580966]
[1693588105413,0.003,25743.0,25742.0,0.00388]
[1693588105609,1.2,25753.0,25751.0,0.3]
[1693588105813,0.02,25753.0,25752.0,0.42]
[1693588106015,0.42,25755.0,25753.0,0.00388]
[1693588106209,0.42,25755.0,25754.0,0.42388]
[1693588106416,0.44,25755.0,25754.0,0.42388]
[1693588106615,0.00388,25753.0,25752.0,0.42]
[1693588106821,0.44,25753.0,25749.0,0.42388]
[1693588107117,0.42,25750.0,25747.0,0.3]
[1693588107318,0.42,25750.0,25747.0,0.72]
[1693588107319,0.42,25748.0,25747.0,0.72]
[1693588107514,0.00099999,25752.0,25747.0,0.3]
[1693588107710,0.2838,25754.0,25751.0,0.622]
[1693588108023,1.822,25752.0,25749.0,0.001]
[1693588108319,0.622,25750.0,25749.0,0.001]
[1693588108517,0.02,25750.0,25749.0,0.001]
[1693588108726,0.004,25753.0,25749.0,0.71880966]
[1693588108925,0.004,25753.0,25751.0,0.622]
[1693588109215,0.004,25753.0,25752.0,1.33980966]
[1693588109417,0.00058246,25755.0,25754.0,0.3]
[1693588109618,0.00058246,25755.0,25754.0,1.01780966]
[1693588109826,0.00058246,25755.0,25754.0,1.03780966]
[1693588110317,0.00058246,25755.0,25754.0,1.02168966]
[1693588110524,0.00058246,25755.0,25754.0,1.03780966]
[1693588110825,0.00758246,25755.0,25754.0,1.05780966]
[1693588111409,0.02758246,25755.0,25754.0,1.06168966]
[1693588111622,0.02758246,25755.0,25754.0,1.05780966]
[1693588112121,0.00758246,25755.0,25754.0,1.05780966]
[1693588112423,0.00758246,25755.0,25754.0,1.46568966]
[1693588112612,0.02758246,25755.0,25754.0,1.46180966]
[1693588112919,0.03146246,25755.0,25754.0,0.04]
[1693588113116,0.02758246,25755.0,25754.0,0.04]
[1693588113314,0.04707985,25755.0,25754.0,0.04]
[1693588113612,0.02758246,25755.0,25754.0,0.09654838]
[1693588113816,0.00758246,25755.0,25754.0,1.16180966]
[1693588114022,0.00758246,25755.0,25754.0,2.28504841]
[1693588114223,0.00758246,25755.0,25754.0,2.27904841]